[Event "Late-Titled-Tuesday-Blitz-August-29-2023"]
[Site "Chess.com"]
[Date "2023.08.29"]
[Round "2"]
[White "bascheyaro"]
[Black "Zq1"]
[Result "1-0"]
[WhiteElo "2808"]
[BlackElo "2532"]
[TimeControl "180+1"]
[EndTime "14:14:27 PDT"]
[Termination "bascheyaro won by checkmate"]

1. d4 {[%clk 0:03:00.9]} 1... d5 {[%clk 0:02:59.1]} 2. Bf4 {[%clk 0:03:00.6]}
2... e6 {[%clk 0:02:58.3]} 3. e3 {[%clk 0:03:00.7]} 3... c5 {[%clk 0:02:53]} 4.
Nf3 {[%clk 0:03:00.5]} 4... Nc6 {[%clk 0:02:52.2]} 5. a3 {[%clk 0:03:00]} 5...
Bd6 {[%clk 0:02:47.8]} 6. dxc5 {[%clk 0:02:59.5]} 6... Bxf4 {[%clk 0:02:32.7]}
7. exf4 {[%clk 0:02:59.6]} 7... Qa5+ {[%clk 0:02:32.4]} 8. Nbd2 {[%clk
0:03:00.4]} 8... Qxc5 {[%clk 0:02:31.5]} 9. Bd3 {[%clk 0:03:01.1]} 9... Nf6
{[%clk 0:02:30.4]} 10. O-O {[%clk 0:03:01.2]} 10... O-O {[%clk 0:02:30.1]} 11.
b4 {[%clk 0:03:00.6]} 11... Qd6 {[%clk 0:02:26.2]} 12. g3 {[%clk 0:03:01]} 12...
b6 {[%clk 0:02:19.5]} 13. Re1 {[%clk 0:02:59.9]} 13... Bb7 {[%clk 0:02:18.2]}
14. Ne5 {[%clk 0:02:59.4]} 14... Rac8 {[%clk 0:02:14.5]} 15. Ndf3 {[%clk
0:02:56]} 15... Rfd8 {[%clk 0:02:08.6]} 16. Qe2 {[%clk 0:02:52.8]} 16... Ne7
{[%clk 0:02:02.4]} 17. Ng5 {[%clk 0:02:46.7]} 17... Rf8 {[%clk 0:02:01.4]} 18.
Nexf7 {[%clk 0:02:12.1]} 18... Rxf7 {[%clk 0:02:00.3]} 19. Qxe6 {[%clk
0:02:12.2]} 19... Qxe6 {[%clk 0:01:55.9]} 20. Rxe6 {[%clk 0:02:13.1]} 20... h6
{[%clk 0:01:45.5]} 21. Nxf7 {[%clk 0:02:08.5]} 21... Kxf7 {[%clk 0:01:44.9]} 22.
Rae1 {[%clk 0:02:08.5]} 22... Nc6 {[%clk 0:01:44.5]} 23. b5 {[%clk 0:02:01.4]}
23... Nd8 {[%clk 0:01:43.9]} 24. Re7+ {[%clk 0:02:01.3]} 24... Kf8 {[%clk
0:01:41.2]} 25. Bg6 {[%clk 0:02:01.1]} 25... Ne4 {[%clk 0:01:30.8]} 26. Re8#
{[%clk 0:02:01.2]} 1-0

[Event "Late-Titled-Tuesday-Blitz-August-29-2023"]
[Site "Chess.com"]
[Date "2023.08.29"]
[Round "2"]
[White "miraitrunks"]
[Black "Andrei_Skvortsov"]
[Result "1-0"]
[WhiteElo "2030"]
[BlackElo "2666"]
[TimeControl "180+1"]
[EndTime "14:14:43 PDT"]
[Termination "miraitrunks won by resignation"]

1. e4 {[%clk 0:02:59.2]} 1... c5 {[%clk 0:02:59]} 2. Nf3 {[%clk 0:02:58.6]} 2...
d6 {[%clk 0:02:59.2]} 3. d4 {[%clk 0:02:59.2]} 3... cxd4 {[%clk 0:02:57.4]} 4.
Nxd4 {[%clk 0:02:59.9]} 4... Nf6 {[%clk 0:02:57.5]} 5. Nc3 {[%clk 0:03:00.1]}
5... g6 {[%clk 0:02:58.1]} 6. Be3 {[%clk 0:02:59.1]} 6... Bg7 {[%clk 0:02:58.4]}
7. Bc4 {[%clk 0:02:59.3]} 7... O-O {[%clk 0:02:57.9]} 8. f3 {[%clk 0:02:59.4]}
8... a6 {[%clk 0:02:56.1]} 9. Bb3 {[%clk 0:02:59.1]} 9... Nc6 {[%clk 0:02:51.9]}
10. Qd2 {[%clk 0:02:57.5]} 10... Nxd4 {[%clk 0:02:50.1]} 11. Bxd4 {[%clk
0:02:56.8]} 11... Be6 {[%clk 0:02:46.6]} 12. O-O-O {[%clk 0:02:54.5]} 12... b5
{[%clk 0:02:43.8]} 13. g4 {[%clk 0:02:51.5]} 13... Bxb3 {[%clk 0:02:39.5]} 14.
axb3 {[%clk 0:02:49.6]} 14... b4 {[%clk 0:02:38.7]} 15. Nd5 {[%clk 0:02:47]}
15... Qa5 {[%clk 0:02:34.6]} 16. Kb1 {[%clk 0:02:41.7]} 16... Nxd5 {[%clk
0:02:33.5]} 17. Bxg7 {[%clk 0:02:39.6]} 17... Kxg7 {[%clk 0:02:28.2]} 18. Qxd5
{[%clk 0:02:37.6]} 18... Qxd5 {[%clk 0:02:27.1]} 19. Rxd5 {[%clk 0:02:38.2]}
19... Rfc8 {[%clk 0:02:26.6]} 20. Rhd1 {[%clk 0:02:35.8]} 20... a5 {[%clk
0:02:23.4]} 21. e5 {[%clk 0:02:32]} 21... dxe5 {[%clk 0:02:23.1]} 22. Rxe5
{[%clk 0:02:32.7]} 22... e6 {[%clk 0:02:21.5]} 23. Rd7 {[%clk 0:02:31.5]} 23...
Rd8 {[%clk 0:02:11.6]} 24. Rb7 {[%clk 0:02:30.2]} 24... a4 {[%clk 0:02:00.8]}
25. bxa4 {[%clk 0:02:18.5]} 25... Rxa4 {[%clk 0:01:58]} 26. b3 {[%clk 0:02:18]}
26... Ra6 {[%clk 0:01:51.7]} 27. Rxb4 {[%clk 0:02:16.5]} 27... Rd1+ {[%clk
0:01:49.7]} 28. Kb2 {[%clk 0:02:13.8]} 28... Rd2 {[%clk 0:01:50]} 29. h4 {[%clk
0:02:12.8]} 29... Rc6 {[%clk 0:01:49.5]} 30. Rc4 {[%clk 0:02:10.8]} 30... Rxc4
{[%clk 0:01:48.1]} 31. bxc4 {[%clk 0:02:11.5]} 31... Rf2 {[%clk 0:01:45.7]} 32.
Re3 {[%clk 0:02:10.1]} 32... Rh2 {[%clk 0:01:44.4]} 33. c5 {[%clk 0:02:09.8]}
33... Kf8 {[%clk 0:01:44.1]} 34. c6 {[%clk 0:02:08.8]} 34... Ke7 {[%clk
0:01:40.3]} 35. Rd3 {[%clk 0:02:08.4]} 1-0

[Event "Late-Titled-Tuesday-Blitz-August-29-2023"]
[Site "Chess.com"]
[Date "2023.08.29"]
[Round "2"]
[White "dropstoneDP"]
[Black "eldur16"]
[Result "1-0"]
[WhiteElo "2974"]
[BlackElo "2622"]
[TimeControl "180+1"]
[EndTime "14:14:47 PDT"]
[Termination "dropstoneDP won by resignation"]

1. d4 {[%clk 0:03:00.9]} 1... Nf6 {[%clk 0:02:59.5]} 2. c4 {[%clk 0:03:00.5]}
2... g6 {[%clk 0:02:59.6]} 3. f3 {[%clk 0:03:00.1]} 3... Bg7 {[%clk 0:02:59]} 4.
e4 {[%clk 0:03:00.6]} 4... d6 {[%clk 0:02:59.3]} 5. Nc3 {[%clk 0:03:01]} 5...
O-O {[%clk 0:02:59.3]} 6. Be3 {[%clk 0:03:01.1]} 6... e5 {[%clk 0:02:59.4]} 7.
d5 {[%clk 0:03:01.4]} 7... c6 {[%clk 0:02:59.5]} 8. Qd2 {[%clk 0:03:00.4]} 8...
cxd5 {[%clk 0:02:59.4]} 9. cxd5 {[%clk 0:03:00.3]} 9... Nh5 {[%clk 0:02:57.7]}
10. Bd3 {[%clk 0:02:55.9]} 10... f5 {[%clk 0:02:57]} 11. Nge2 {[%clk 0:02:55.1]}
11... Na6 {[%clk 0:02:56.8]} 12. O-O-O {[%clk 0:02:54.8]} 12... Nc5 {[%clk
0:02:52]} 13. Bc2 {[%clk 0:02:54.2]} 13... a5 {[%clk 0:02:51.2]} 14. Kb1 {[%clk
0:02:53.4]} 14... Bd7 {[%clk 0:02:50]} 15. exf5 {[%clk 0:02:51.2]} 15... gxf5
{[%clk 0:02:49.1]} 16. Ng3 {[%clk 0:02:50.3]} 16... Qe8 {[%clk 0:02:44.1]} 17.
Nxh5 {[%clk 0:02:47]} 17... Qxh5 {[%clk 0:02:42.9]} 18. h3 {[%clk 0:02:47.9]}
18... Rfc8 {[%clk 0:02:29.3]} 19. g4 {[%clk 0:02:47.4]} 19... Qf7 {[%clk
0:02:28]} 20. Rhg1 {[%clk 0:02:47.2]} 20... Kh8 {[%clk 0:02:22.2]} 21. Qg2
{[%clk 0:02:37.1]} 21... e4 {[%clk 0:02:16]} 22. gxf5 {[%clk 0:02:34.5]} 22...
exf3 {[%clk 0:02:09.5]} 23. Qxf3 {[%clk 0:02:35.4]} 23... Be5 {[%clk 0:01:59]}
24. Bd4 {[%clk 0:02:35.2]} 24... Bxd4 {[%clk 0:01:48]} 25. Rxd4 {[%clk
0:02:36.1]} 25... Qf6 {[%clk 0:01:47]} 26. Rdg4 {[%clk 0:02:32]} 26... Re8
{[%clk 0:01:39.9]} 27. Rg7 {[%clk 0:02:28.7]} 27... Re5 {[%clk 0:01:16.6]} 28.
Rxh7+ {[%clk 0:02:24.3]} 28... Kxh7 {[%clk 0:01:07.8]} 29. Qh5+ {[%clk
0:02:25.2]} 29... Qh6 {[%clk 0:01:06.1]} 30. f6+ {[%clk 0:02:26.1]} 30... Bf5
{[%clk 0:01:06.2]} 31. Rg7+ {[%clk 0:02:26.3]} 1-0

[Event "Late-Titled-Tuesday-Blitz-August-29-2023"]
[Site "Chess.com"]
[Date "2023.08.29"]
[Round "2"]
[White "maciek_92"]
[Black "Kostukov_Alex"]
[Result "1-0"]
[WhiteElo "2724"]
[BlackElo "2401"]
[TimeControl "180+1"]
[EndTime "14:15:02 PDT"]
[Termination "maciek_92 won by resignation"]

1. Nf3 {[%clk 0:03:00.9]} 1... c5 {[%clk 0:02:52.5]} 2. b3 {[%clk 0:03:01.2]}
2... Nf6 {[%clk 0:02:51.1]} 3. Bb2 {[%clk 0:03:01.8]} 3... g6 {[%clk 0:02:50.2]}
4. g3 {[%clk 0:03:01.1]} 4... Bg7 {[%clk 0:02:50.1]} 5. Bg2 {[%clk 0:03:01.8]}
5... O-O {[%clk 0:02:50.6]} 6. O-O {[%clk 0:03:02.5]} 6... Nc6 {[%clk
0:02:50.6]} 7. e3 {[%clk 0:03:02.6]} 7... d6 {[%clk 0:02:39.7]} 8. d4 {[%clk
0:03:01.9]} 8... Ne4 {[%clk 0:02:35.3]} 9. c4 {[%clk 0:02:57.8]} 9... Bg4 {[%clk
0:02:27.7]} 10. Nbd2 {[%clk 0:02:57.5]} 10... Nxd2 {[%clk 0:02:20.3]} 11. Qxd2
{[%clk 0:02:58.4]} 11... Qb6 {[%clk 0:02:10.6]} 12. Rad1 {[%clk 0:02:45.9]}
12... Rfd8 {[%clk 0:02:01.4]} 13. h3 {[%clk 0:02:45]} 13... Bxf3 {[%clk
0:01:49]} 14. Bxf3 {[%clk 0:02:45.9]} 14... e5 {[%clk 0:01:48.3]} 15. dxc5
{[%clk 0:02:40.9]} 15... dxc5 {[%clk 0:01:44.8]} 16. Bd5 {[%clk 0:02:41.3]}
16... Nb4 {[%clk 0:01:35.4]} 17. Bc3 {[%clk 0:02:28.9]} 17... Nxd5 {[%clk
0:01:30.9]} 18. cxd5 {[%clk 0:02:28.1]} 18... e4 {[%clk 0:01:30]} 19. Ba5 {[%clk
0:02:28]} 19... Qd6 {[%clk 0:01:13.8]} 20. Bxd8 {[%clk 0:02:28.5]} 20... Rxd8
{[%clk 0:01:14.2]} 21. Qc2 {[%clk 0:02:29.1]} 21... f5 {[%clk 0:01:13.3]} 22.
Rc1 {[%clk 0:02:27]} 22... b6 {[%clk 0:01:11.3]} 23. Rfd1 {[%clk 0:02:26.8]}
23... Be5 {[%clk 0:01:10.2]} 24. Kg2 {[%clk 0:02:22.5]} 24... g5 {[%clk
0:01:08.5]} 25. b4 {[%clk 0:02:14.9]} 25... Rc8 {[%clk 0:01:03.6]} 26. bxc5
{[%clk 0:02:11.5]} 26... Rxc5 {[%clk 0:01:03.5]} 27. Qa4 {[%clk 0:02:11.7]}
27... Rxd5 {[%clk 0:00:57.1]} 28. Qc4 {[%clk 0:02:09.8]} 1-0

[Event "Late-Titled-Tuesday-Blitz-August-29-2023"]
[Site "Chess.com"]
[Date "2023.08.29"]
[Round "2"]
[White "Aygehovit1992"]
[Black "Sajkochess"]
[Result "1-0"]
[WhiteElo "2734"]
[BlackElo "2415"]
[TimeControl "180+1"]
[EndTime "14:15:16 PDT"]
[Termination "Aygehovit1992 won by resignation"]

1. e4 {[%clk 0:03:00.9]} 1... c6 {[%clk 0:02:59.4]} 2. Nc3 {[%clk 0:03:00.3]}
2... d5 {[%clk 0:03:00]} 3. Nf3 {[%clk 0:03:01.2]} 3... Bg4 {[%clk 0:02:58.8]}
4. h3 {[%clk 0:03:00.9]} 4... Bxf3 {[%clk 0:02:59]} 5. Qxf3 {[%clk 0:03:01.8]}
5... e6 {[%clk 0:02:59.2]} 6. d4 {[%clk 0:03:01.6]} 6... Nd7 {[%clk 0:02:54.5]}
7. Bd3 {[%clk 0:03:00.1]} 7... dxe4 {[%clk 0:02:49]} 8. Nxe4 {[%clk 0:03:01]}
8... Ngf6 {[%clk 0:02:48.8]} 9. c3 {[%clk 0:02:56.6]} 9... Nxe4 {[%clk
0:02:48.6]} 10. Qxe4 {[%clk 0:02:57.5]} 10... Nf6 {[%clk 0:02:48.8]} 11. Qe2
{[%clk 0:02:56.8]} 11... Bd6 {[%clk 0:02:49]} 12. f4 {[%clk 0:02:55.9]} 12...
Nd5 {[%clk 0:02:46.4]} 13. O-O {[%clk 0:02:52.5]} 13... Qh4 {[%clk 0:02:46.2]}
14. Qf2 {[%clk 0:02:42.8]} 14... Qxf2+ {[%clk 0:02:38.7]} 15. Rxf2 {[%clk
0:02:43.7]} 15... b5 {[%clk 0:02:20.4]} 16. f5 {[%clk 0:02:43.4]} 16... exf5
{[%clk 0:02:17]} 17. Rxf5 {[%clk 0:02:39.4]} 17... g6 {[%clk 0:02:15.2]} 18.
Bxb5 {[%clk 0:02:34.9]} 18... gxf5 {[%clk 0:02:11.4]} 19. Bxc6+ {[%clk
0:02:34.7]} 19... Ke7 {[%clk 0:02:05.2]} 20. Bxd5 {[%clk 0:02:33.8]} 20... Rab8
{[%clk 0:01:54.7]} 21. Bg5+ {[%clk 0:02:32.9]} 21... Kd7 {[%clk 0:01:43.6]} 22.
b3 {[%clk 0:02:33.1]} 22... Rhe8 {[%clk 0:01:31.7]} 23. Rf1 {[%clk 0:02:26]}
23... f4 {[%clk 0:01:05.3]} 24. Bxf4 {[%clk 0:02:25.3]} 24... Re2 {[%clk
0:01:03.4]} 25. Bc4 {[%clk 0:02:14.3]} 25... Rxa2 {[%clk 0:00:57.9]} 26. Bxd6
{[%clk 0:02:14.5]} 26... Kxd6 {[%clk 0:00:57.5]} 27. Rf6+ {[%clk 0:02:15.1]}
27... Ke7 {[%clk 0:00:52.3]} 28. Rxf7+ {[%clk 0:02:15]} 28... Ke8 {[%clk
0:00:52.7]} 29. Rxh7 {[%clk 0:02:13.6]} 29... Rb6 {[%clk 0:00:51]} 30. h4 {[%clk
0:02:07.9]} 30... Rg6 {[%clk 0:00:50.2]} 31. Bf7+ {[%clk 0:02:07.3]} 1-0

[Event "Late-Titled-Tuesday-Blitz-August-29-2023"]
[Site "Chess.com"]
[Date "2023.08.29"]
[Round "2"]
[White "Njal28"]
[Black "ExchangeAB"]
[Result "1-0"]
[WhiteElo "3015"]
[BlackElo "2422"]
[TimeControl "180+1"]
[EndTime "14:15:22 PDT"]
[Termination "Njal28 won by resignation"]

1. Nf3 {[%clk 0:02:59.2]} 1... c6 {[%clk 0:02:59.1]} 2. g3 {[%clk 0:02:58.6]}
2... d5 {[%clk 0:03:00]} 3. Bg2 {[%clk 0:02:59.5]} 3... Nf6 {[%clk 0:03:00.4]}
4. O-O {[%clk 0:03:00.3]} 4... Bf5 {[%clk 0:03:00.8]} 5. d3 {[%clk 0:02:58.3]}
5... h6 {[%clk 0:03:01.1]} 6. c4 {[%clk 0:02:56.6]} 6... e6 {[%clk 0:03:01.4]}
7. Qb3 {[%clk 0:02:52.4]} 7... Qb6 {[%clk 0:03:01.1]} 8. Be3 {[%clk 0:02:52.8]}
8... Qxb3 {[%clk 0:02:59.2]} 9. axb3 {[%clk 0:02:53.7]} 9... Na6 {[%clk
0:02:56.7]} 10. Nd4 {[%clk 0:02:51.6]} 10... Bg6 {[%clk 0:02:55]} 11. Nxc6
{[%clk 0:02:50.4]} 11... Kd7 {[%clk 0:02:11.1]} 12. Ne5+ {[%clk 0:02:47.2]}
12... Kd6 {[%clk 0:02:03.8]} 13. Nxg6 {[%clk 0:02:48.1]} 13... fxg6 {[%clk
0:02:04]} 14. Nc3 {[%clk 0:02:49]} 14... Be7 {[%clk 0:01:19.1]} 15. Bf4+ {[%clk
0:02:41.8]} 15... e5 {[%clk 0:01:13.7]} 16. Bd2 {[%clk 0:02:41.5]} 16... Nc7
{[%clk 0:01:04.6]} 17. Rfc1 {[%clk 0:02:39]} 17... a6 {[%clk 0:01:01.6]} 18. Na4
{[%clk 0:02:35.4]} 18... Rab8 {[%clk 0:00:55.9]} 19. Bb4+ {[%clk 0:02:31.5]}
19... Ke6 {[%clk 0:00:53.3]} 20. Ba5 {[%clk 0:02:30.5]} 20... Na8 {[%clk
0:00:43.6]} 21. cxd5+ {[%clk 0:02:22.5]} 21... Nxd5 {[%clk 0:00:44.5]} 22. Nc5+
{[%clk 0:02:22.4]} 22... Bxc5 {[%clk 0:00:35.4]} 23. Rxc5 {[%clk 0:02:23.3]}
23... Nab6 {[%clk 0:00:20]} 24. e4 {[%clk 0:02:17.2]} 1-0

[Event "Late-Titled-Tuesday-Blitz-August-29-2023"]
[Site "Chess.com"]
[Date "2023.08.29"]
[Round "2"]
[White "dosto07"]
[Black "ashookk"]
[Result "0-1"]
[WhiteElo "2495"]
[BlackElo "2366"]
[TimeControl "180+1"]
[EndTime "14:15:32 PDT"]
[Termination "ashookk won by resignation"]

1. e4 {[%clk 0:03:00.9]} 1... e6 {[%clk 0:02:59.5]} 2. d4 {[%clk 0:03:00.4]}
2... d5 {[%clk 0:03:00.4]} 3. Nd2 {[%clk 0:03:00.6]} 3... Be7 {[%clk 0:03:00]}
4. Bd3 {[%clk 0:03:00.1]} 4... c5 {[%clk 0:02:59.8]} 5. dxc5 {[%clk 0:02:59.9]}
5... Nf6 {[%clk 0:02:58.6]} 6. Qe2 {[%clk 0:03:00.2]} 6... Nc6 {[%clk 0:02:58]}
7. Ngf3 {[%clk 0:02:59.6]} 7... Nd7 {[%clk 0:02:56.1]} 8. Nb3 {[%clk 0:02:58]}
8... O-O {[%clk 0:02:55.7]} 9. exd5 {[%clk 0:02:57.1]} 9... exd5 {[%clk
0:02:55.5]} 10. Be3 {[%clk 0:02:53.6]} 10... Re8 {[%clk 0:02:55.4]} 11. O-O-O
{[%clk 0:02:51]} 11... Nxc5 {[%clk 0:02:53.1]} 12. Rhe1 {[%clk 0:02:44.5]} 12...
Nxb3+ {[%clk 0:02:31.8]} 13. axb3 {[%clk 0:02:44.1]} 13... Qa5 {[%clk
0:02:32.3]} 14. c3 {[%clk 0:02:22.8]} 14... Be6 {[%clk 0:02:24.3]} 15. Qc2
{[%clk 0:02:16.4]} 15... h6 {[%clk 0:02:07.4]} 16. Kb1 {[%clk 0:02:15.3]} 16...
Rac8 {[%clk 0:02:05.9]} 17. b4 {[%clk 0:02:14.3]} 17... Nxb4 {[%clk 0:01:42.5]}
18. cxb4 {[%clk 0:02:12.4]} 18... Bxb4 {[%clk 0:01:43.4]} 19. Nd4 {[%clk
0:01:13.1]} 19... Rxc2 {[%clk 0:01:40.3]} 20. Nxc2 {[%clk 0:01:12.4]} 20... Bxe1
{[%clk 0:01:41]} 21. Rxe1 {[%clk 0:01:12.8]} 21... d4 {[%clk 0:01:37.6]} 22.
Bxd4 {[%clk 0:01:08.2]} 22... Ba2+ {[%clk 0:01:32.4]} 0-1

[Event "Late-Titled-Tuesday-Blitz-August-29-2023"]
[Site "Chess.com"]
[Date "2023.08.29"]
[Round "2"]
[White "Ducke13"]
[Black "dorpato"]
[Result "1-0"]
[WhiteElo "2426"]
[BlackElo "2008"]
[TimeControl "180+1"]
[EndTime "14:15:40 PDT"]
[Termination "Ducke13 won by resignation"]

1. d4 {[%clk 0:02:57]} 1... Nf6 {[%clk 0:02:59.6]} 2. g3 {[%clk 0:02:56.4]} 2...
g6 {[%clk 0:02:59.7]} 3. Bg2 {[%clk 0:02:56.4]} 3... d5 {[%clk 0:03:00.3]} 4.
Nf3 {[%clk 0:02:55.1]} 4... Bg7 {[%clk 0:03:00.5]} 5. c4 {[%clk 0:02:55.6]} 5...
c6 {[%clk 0:02:58.9]} 6. cxd5 {[%clk 0:02:55.2]} 6... cxd5 {[%clk 0:02:58.7]} 7.
Nc3 {[%clk 0:02:55.8]} 7... b6 {[%clk 0:02:58.8]} 8. Ne5 {[%clk 0:02:53.9]} 8...
Bb7 {[%clk 0:02:58.6]} 9. O-O {[%clk 0:02:29.5]} 9... O-O {[%clk 0:02:55.1]} 10.
Bf4 {[%clk 0:02:27.3]} 10... Nc6 {[%clk 0:02:47.8]} 11. Rc1 {[%clk 0:02:26.2]}
11... Nxe5 {[%clk 0:02:46.5]} 12. Bxe5 {[%clk 0:02:26]} 12... Rc8 {[%clk
0:02:44.7]} 13. e3 {[%clk 0:02:25.7]} 13... Nh5 {[%clk 0:02:27.7]} 14. Bxg7
{[%clk 0:02:22.9]} 14... Nxg7 {[%clk 0:02:24.9]} 15. Qa4 {[%clk 0:02:18.2]}
15... a6 {[%clk 0:02:16.2]} 16. Rc2 {[%clk 0:02:14.5]} 16... b5 {[%clk
0:02:07.6]} 17. Qb3 {[%clk 0:02:09.1]} 17... e6 {[%clk 0:02:03.6]} 18. Rfc1
{[%clk 0:02:08.6]} 18... Nf5 {[%clk 0:01:55.9]} 19. a4 {[%clk 0:02:06.7]} 19...
Bc6 {[%clk 0:01:20.9]} 20. axb5 {[%clk 0:02:01.3]} 20... Rb8 {[%clk 0:01:03.5]}
21. Bf1 {[%clk 0:01:57.7]} 21... Qe8 {[%clk 0:00:54.1]} 22. Ne4 {[%clk
0:01:52.4]} 22... Bxb5 {[%clk 0:00:50.6]} 23. Nf6+ {[%clk 0:01:49.6]} 23... Kh8
{[%clk 0:00:47.1]} 24. Nxe8 {[%clk 0:01:49.8]} 24... Rfxe8 {[%clk 0:00:42.7]}
25. Bxb5 {[%clk 0:01:48.6]} 25... Rxb5 {[%clk 0:00:42.1]} 26. Qa4 {[%clk
0:01:48.5]} 26... Ra8 {[%clk 0:00:40.2]} 27. Rc8+ {[%clk 0:01:45.9]} 1-0

[Event "Late-Titled-Tuesday-Blitz-August-29-2023"]
[Site "Chess.com"]
[Date "2023.08.29"]
[Round "2"]
[White "Mbneu"]
[Black "leschebaza"]
[Result "1-0"]
[WhiteElo "2261"]
[BlackElo "2443"]
[TimeControl "180+1"]
[EndTime "14:15:44 PDT"]
[Termination "Mbneu won by resignation"]

1. d4 {[%clk 0:02:57.1]} 1... Nf6 {[%clk 0:02:59.8]} 2. c4 {[%clk 0:02:57.3]}
2... g6 {[%clk 0:02:59.1]} 3. Nc3 {[%clk 0:02:57.3]} 3... Bg7 {[%clk 0:02:58.7]}
4. e4 {[%clk 0:02:56.7]} 4... d6 {[%clk 0:02:57.6]} 5. f4 {[%clk 0:02:57.3]}
5... c5 {[%clk 0:02:56.5]} 6. d5 {[%clk 0:02:56.3]} 6... O-O {[%clk 0:02:54.6]}
7. Nf3 {[%clk 0:02:56.6]} 7... e6 {[%clk 0:02:54.8]} 8. Be2 {[%clk 0:02:55.7]}
8... exd5 {[%clk 0:02:55]} 9. cxd5 {[%clk 0:02:56.6]} 9... b5 {[%clk 0:02:51.5]}
10. e5 {[%clk 0:02:50.3]} 10... dxe5 {[%clk 0:02:33.1]} 11. fxe5 {[%clk
0:02:49.8]} 11... Ng4 {[%clk 0:02:28]} 12. Bg5 {[%clk 0:02:44.1]} 12... Qa5
{[%clk 0:02:01.8]} 13. O-O {[%clk 0:02:39.1]} 13... Nxe5 {[%clk 0:01:35.8]} 14.
Nxe5 {[%clk 0:02:33.3]} 14... Bxe5 {[%clk 0:01:36.7]} 15. Be7 {[%clk 0:02:33.1]}
15... Re8 {[%clk 0:01:31.7]} 16. d6 {[%clk 0:02:32.7]} 16... Nc6 {[%clk
0:01:18]} 17. Qd5 {[%clk 0:02:22]} 17... Be6 {[%clk 0:00:53.9]} 18. Qxc6 {[%clk
0:02:20.6]} 18... b4 {[%clk 0:00:44.4]} 19. Nd5 {[%clk 0:02:14.2]} 19... Rec8
{[%clk 0:00:36.6]} 20. Nc7 {[%clk 0:02:09.6]} 20... b3 {[%clk 0:00:22.7]} 21.
axb3 {[%clk 0:02:05.9]} 21... Qd2 {[%clk 0:00:22.6]} 22. Bc4 {[%clk 0:01:58.7]}
22... Qd4+ {[%clk 0:00:20.4]} 23. Kh1 {[%clk 0:01:57.3]} 23... Qh4 {[%clk
0:00:20.2]} 24. Bxh4 {[%clk 0:01:52.4]} 1-0

[Event "Late-Titled-Tuesday-Blitz-August-29-2023"]
[Site "Chess.com"]
[Date "2023.08.29"]
[Round "2"]
[White "szachmistrz2500"]
[Black "jinxy2009"]
[Result "0-1"]
[WhiteElo "2490"]
[BlackElo "2351"]
[TimeControl "180+1"]
[EndTime "14:15:59 PDT"]
[Termination "jinxy2009 won by resignation"]

1. Nf3 {[%clk 0:03:00.9]} 1... d5 {[%clk 0:02:56.8]} 2. g3 {[%clk 0:03:01]} 2...
Nf6 {[%clk 0:02:54.8]} 3. Bg2 {[%clk 0:03:01.4]} 3... e6 {[%clk 0:02:54.4]} 4.
O-O {[%clk 0:03:01.9]} 4... Be7 {[%clk 0:02:48.5]} 5. d3 {[%clk 0:03:02.8]} 5...
O-O {[%clk 0:02:48.7]} 6. Nbd2 {[%clk 0:03:03.6]} 6... c5 {[%clk 0:02:46.6]} 7.
e4 {[%clk 0:03:04]} 7... Nc6 {[%clk 0:02:47.1]} 8. Re1 {[%clk 0:03:01.8]} 8...
Qc7 {[%clk 0:02:47.1]} 9. Qe2 {[%clk 0:03:01.6]} 9... b5 {[%clk 0:02:43.9]} 10.
e5 {[%clk 0:03:01.3]} 10... Nd7 {[%clk 0:02:43.4]} 11. Nf1 {[%clk 0:03:01.4]}
11... b4 {[%clk 0:02:40.5]} 12. h4 {[%clk 0:03:01]} 12... Bb7 {[%clk 0:02:37.2]}
13. h5 {[%clk 0:03:00.9]} 13... h6 {[%clk 0:02:36.8]} 14. Bf4 {[%clk 0:03:00.3]}
14... Rfc8 {[%clk 0:02:35.8]} 15. N1h2 {[%clk 0:03:00]} 15... a5 {[%clk
0:02:34]} 16. Ng4 {[%clk 0:02:59.8]} 16... Bf8 {[%clk 0:02:33.9]} 17. Qd2 {[%clk
0:02:58.2]} 17... Qd8 {[%clk 0:02:28.4]} 18. Bxh6 {[%clk 0:02:51.8]} 18... gxh6
{[%clk 0:02:28.1]} 19. Nxh6+ {[%clk 0:02:52]} 19... Bxh6 {[%clk 0:02:27]} 20.
Qxh6 {[%clk 0:02:51.3]} 20... Qf8 {[%clk 0:02:27.2]} 21. Qf4 {[%clk 0:02:51.2]}
21... Nd4 {[%clk 0:01:52.1]} 22. Rac1 {[%clk 0:02:40]} 22... Nxf3+ {[%clk
0:01:45.8]} 23. Bxf3 {[%clk 0:02:39.5]} 23... Qg7 {[%clk 0:01:34.1]} 24. Kg2
{[%clk 0:02:33.4]} 24... Rab8 {[%clk 0:01:27.1]} 25. g4 {[%clk 0:02:28.6]} 25...
d4 {[%clk 0:01:26.9]} 26. g5 {[%clk 0:02:24.9]} 26... Bxf3+ {[%clk 0:01:24.2]}
27. Kxf3 {[%clk 0:02:25.2]} 27... c4 {[%clk 0:01:15]} 28. Qxd4 {[%clk
0:02:21.8]} 28... Nb6 {[%clk 0:01:03.7]} 29. Kg4 {[%clk 0:01:55.9]} 29... cxd3
{[%clk 0:00:57.9]} 30. cxd3 {[%clk 0:01:51]} 30... Rd8 {[%clk 0:00:53.6]} 31.
Qe4 {[%clk 0:01:47.2]} 31... Nd5 {[%clk 0:00:47.7]} 32. Rc5 {[%clk 0:01:42.2]}
32... f5+ {[%clk 0:00:47]} 33. exf6 {[%clk 0:01:33.8]} 33... Nxf6+ {[%clk
0:00:46.7]} 0-1